bitfinex/quotes_ETHUSD_20230701
["timestamp","ask_amount","ask_price","bid_price","bid_amount"]
[1688206512606,0.1,1920.2,1919.9,10.4171]
[1688206512809,5.30789,1920.2,1919.9,10.4171]
[1688206515378,0.1,1920.2,1919.9,13.0214]
[1688206515697,0.1,1920.2,1919.9,10.4171]
[1688206515914,5.30781,1920.2,1919.9,10.4171]
[1688206518818,10.51562,1920.2,1919.8,8.60544]
[1688206519127,10.51562,1920.2,1919.8,12.45716]
[1688206520897,10.51562,1920.2,1919.8,7.24832]
[1688206522015,10.51562,1920.2,1919.8,13.81419]
[1688206522530,10.51562,1920.2,1919.8,16.41862]
[1688206526008,5.30781,1920.2,1919.9,1.346]
[1688206526218,5.30781,1920.2,1920.0,5.20833]
[1688206526902,5.30781,1920.2,1920.0,7.73833]
[1688206527103,0.1,1920.2,1920.0,7.73833]
[1688206531516,0.1,1920.2,1920.0,9.86833]
[1688206533138,0.1,1920.2,1920.0,15.07666]
[1688206534135,5.30804,1920.2,1920.0,9.86833]
[1688206534339,5.30804,1920.2,1920.0,15.07666]
[1688206534543,0.1,1920.2,1920.0,15.07666]
[1688206534754,5.30785,1920.2,1920.0,15.07666]
[1688206535263,5.30785,1920.2,1920.0,9.86832]
[1688206535560,5.30785,1920.2,1920.0,15.07665]
[1688206540064,0.1,1920.2,1920.0,15.07665]
[1688206540449,0.1,1920.2,1920.0,17.68081]
[1688206542358,0.308454,1920.2,1920.0,17.68081]
[1688206545372,5.516264,1920.2,1920.0,4.66]
[1688206545575,5.516264,1920.2,1920.0,2.53]
[1688206545576,10.724074,1920.2,1920.0,2.53]
[1688206546388,10.724074,1920.2,1920.0,7.73832]
[1688206548186,5.516264,1920.2,1920.0,12.94665]
[1688206548367,5.516264,1920.2,1920.0,15.06155]
[1688206548568,0.308454,1920.2,1920.0,17.66571]
[1688206549187,0.258454,1920.2,1920.0,15.06155]
[1688206550479,10.674034,1920.2,1920.0,9.85322]
[1688206551980,10.674034,1920.2,1920.0,7.73832]
[1688206552414,13.277924,1920.2,1919.7,2.6]
[1688206552615,26.579604,1920.2,1919.7,2.6]
[1688206554402,1.352,1919.9,1919.7,2.6]
[1688206554602,16.9826,1919.8,1919.7,2.6]
[1688206557000,19.9826,1919.8,1919.7,2.6]
[1688206557190,25.4726,1919.8,1919.7,2.6]
[1688206557695,25.9526,1919.8,1919.7,2.6]
[1688206558084,31.16147,1919.8,1919.7,2.6]
[1688206559798,25.9526,1919.8,1919.7,2.6]
[1688206564218,29.0836,1919.8,1919.7,2.6]
[1688206564420,0.5,1919.7,1918.9,2.5595]
[1688206564720,1.353,1919.3,1918.9,2.5595]
[1688206564937,13.02637,1919.2,1918.9,2.5595]
[1688206565140,13.02637,1919.2,1918.7,4.6879]
[1688206565337,13.02637,1919.2,1918.8,0.46879]
[1688206565806,13.02637,1919.2,1918.7,1.953]
[1688206566001,1.352,1919.0,1918.4,0.41623364]
[1688206566307,1.352,1919.0,1918.4,2.7349]
[1688206566308,15.63457,1918.9,1918.4,2.7349]
[1688206566504,13.02881,1918.9,1918.4,2.7349]
[1688206566718,5.21153,1918.9,1918.4,13.16016]
[1688206566912,5.21153,1918.9,1918.5,1.316016]
[1688206567133,5.21153,1918.9,1918.5,6.528226]
[1688206567322,10.43953601,1918.9,1918.4,7.94753]
[1688206567522,13.04518601,1918.9,1918.4,7.94753]
[1688206567730,14.40218601,1918.9,1918.2,5.21295]
[1688206568034,14.40218601,1918.9,1918.3,5.2127]
[1688206568035,19.88118601,1918.9,1918.3,5.2127]
[1688206568238,18.52418601,1918.9,1918.3,5.2127]
[1688206568444,18.52418601,1918.9,1918.3,10.42543]
[1688206569427,19.87218601,1918.9,1918.2,13.16111]
[1688206570934,19.87218601,1918.9,1918.3,2.0849]
[1688206571237,13.02997,1918.7,1918.3,7.29779]
[1688206572343,13.02997,1918.7,1918.3,2.0849]
[1688206572645,13.02997,1918.7,1918.3,7.29773]
[1688206573030,13.02997,1918.7,1918.3,2.0849]
[1688206574125,13.02997,1918.7,1918.3,7.29784]
[1688206574328,13.02997,1918.7,1918.3,12.51078]
[1688206574729,13.02997,1918.7,1918.3,7.29784]
[1688206574945,13.8550001,1918.7,1918.3,7.29784]
[1688206575146,13.8550001,1918.7,1918.3,12.51078]
[1688206575443,13.8550001,1918.7,1918.3,7.29784]
[1688206576144,13.8550001,1918.7,1918.3,7.29776]
[1688206576326,13.8550001,1918.7,1918.3,2.0849]
[1688206576528,13.8550001,1918.7,1918.3,7.29782]
[1688206577634,13.8550001,1918.7,1918.3,2.0849]
[1688206578519,13.8550001,1918.7,1918.3,12.51077]
[1688206579832,13.8550001,1918.7,1918.3,15.11724]
[1688206579983,11.2490101,1918.7,1918.3,15.11724]
[1688206580476,1.12490101,1918.6,1918.3,2.0849]
[1688206580676,13.031,1918.5,1918.3,2.0849]
[1688206581190,0.416234,1919.0,1918.5,23.72175]
[1688206581360,35.2397,1919.5,1918.8,13.0285]
[1688206581361,30.03,1919.5,1918.8,13.0285]
[1688206581541,30.03,1919.5,1919.0,1.357]
[1688206581746,1.042956,1919.3,1919.1,10.42154]
[1688206582168,1.042956,1919.3,1919.1,6.56577]
[1688206582484,6.253216,1919.3,1919.1,6.56577]
[1688206582660,14.068586,1919.3,1919.0,6.56104]
[1688206582974,14.068586,1919.3,1919.0,1.35]
[1688206584269,14.068586,1919.3,1919.0,6.56103]
[1688206585860,14.068586,1919.3,1919.0,5.21103]
[1688206586357,14.068586,1919.3,1918.9,10.42232]
[1688206586558,14.068586,1919.3,1918.9,6.648942]
[1688206595373,14.068586,1919.3,1918.9,5.21114]
[1688206596365,14.068586,1919.3,1918.9,10.42245]
[1688206597065,14.068586,1919.3,1918.9,5.21114]
[1688206597294,11.463476,1919.3,1918.9,5.21114]
[1688206597473,11.463476,1919.3,1918.9,14.3851]
[1688206597797,14.068586,1919.3,1919.0,1.43851]
[1688206597967,14.068586,1919.3,1918.9,1.357]
[1688206598162,14.068586,1919.3,1918.9,6.56821]
[1688206604379,14.068586,1919.3,1918.9,1.357]
[1688206605299,14.068586,1919.3,1918.9,3.6176]
[1688206606423,14.068586,1919.3,1918.9,2.2606]
[1688206611395,15.7375942,1919.3,1918.9,2.2606]
[1688206615223,15.7375942,1919.3,1918.7,3.1694]
[1688206615224,12.59,1919.2,1918.5,0.41893502]
[1688206615428,0.5,1918.8,1918.2,2.1782]
[1688206615624,31.26170566,1918.7,1917.7,5.88754029]
[1688206615964,31.26170566,1918.7,1917.9,5.0]
[1688206615965,26.32727,1918.7,1917.9,5.0]
[1688206616253,26.32727,1918.7,1917.5,0.54194381]
[1688206616254,6.831,1918.3,1917.5,0.54194381]
[1688206616429,10.4272,1918.1,1917.7,2.1782]
[1688206616746,13.03394,1918.1,1917.7,2.1782]
[1688206617048,13.03394,1918.1,1917.7,3.614034]
[1688206617414,13.03394,1918.1,1917.7,2.1782]
[1688206617955,14.077514,1918.1,1917.7,2.1782]
[1688206623155,16.677514,1918.1,1917.7,2.1782]
[1688206623655,16.677514,1918.1,1917.7,7.39275]
[1688206627019,16.677514,1918.1,1917.7,12.60732]
[1688206627225,3.643574,1918.1,1917.8,1.260732]
[1688206627425,3.643574,1918.1,1917.9,10.42806]
[1688206627951,8.857064,1918.1,1917.9,10.42806]
[1688206628133,8.857064,1918.1,1917.9,5.21403]
[1688206628339,8.857064,1918.1,1917.9,6.1222202]
[1688206628942,14.070554,1918.1,1917.9,6.1222202]
[1688206629636,14.070554,1918.1,1917.9,0.9081902]
[1688206640278,8.857064,1918.1,1917.9,6.1221802]
[1688206640787,3.643574,1918.1,1917.9,11.3362102]
[1688206641256,3.643574,1918.1,1917.9,13.9432202]
[1688206642987,3.643574,1918.1,1917.9,11.3362102]
[1688206643183,8.857114,1918.1,1917.9,11.3362102]
[1688206647197,3.643574,1918.1,1917.9,11.3362102]
[1688206647991,8.857154,1918.1,1917.9,11.3362102]
[1688206648693,14.070734,1918.1,1917.9,5.21399]
[1688206650613,14.070734,1918.1,1917.8,10.42831]
[1688206651695,16.677474,1918.1,1917.6,5.21477]
[1688206651863,18.029474,1918.1,1917.6,7.38887]
[1688206652064,16.677474,1918.1,1917.6,7.38887]
[1688206652481,16.677474,1918.1,1917.6,12.60372]
[1688206653395,16.677474,1918.1,1917.6,14.11388149]
[1688206654796,16.677474,1918.1,1917.6,16.72130149]
[1688206660003,16.677474,1918.1,1917.7,6.12060165]
[1688206660164,16.677474,1918.1,1917.7,5.21445]
[1688206661079,19.36499584,1918.1,1917.7,5.21445]
[1688206664593,8.857154,1918.1,1917.7,12.15530453]
[1688206665072,8.857154,1918.1,1917.8,0.90610946]
[1688206665271,8.857154,1918.1,1917.9,10.42806]
[1688206665272,3.643574,1918.1,1917.9,10.42806]
[1688206665487,3.643574,1918.1,1917.9,13.03507]
[1688206665972,2.6,1918.1,1917.9,13.03507]
[1688206666172,2.6,1918.1,1918.0,1.303507]
[1688206666514,2.6,1918.1,1918.0,11.731027]
[1688206668802,2.6,1918.1,1918.0,14.337907]
[1688206670002,2.6,1918.1,1918.0,11.731027]
[1688206670211,2.6,1918.1,1918.0,10.42752]
[1688206671780,2.6,1918.1,1918.0,5.21376]
[1688206671993,2.6,1918.1,1917.9,5.21391]
[1688206675199,2.6,1918.1,1917.9,5.21388]
[1688206675200,13.02712,1918.1,1917.9,5.21388]
[1688206675405,12.97712,1918.1,1917.9,5.21388]
[1688206675822,7.76356,1918.1,1917.9,5.21388]
[1688206676025,12.97705,1918.1,1917.9,5.21395]
[1688206676196,7.76349,1918.1,1917.9,5.21395]
[1688206676395,12.97698,1918.1,1917.9,5.21395]
[1688206679427,16.22631835,1918.1,1917.7,5.21449]
[1688206679642,11.01282835,1918.1,1917.8,6.12031882]
[1688206679932,11.01282835,1918.1,1917.8,5.2142]
[1688206681296,11.01282835,1918.1,1917.8,10.4285]
[1688206683398,16.22631835,1918.1,1917.8,10.4285]
[1688206685518,18.83305835,1918.1,1917.8,5.2142]
[1688206685716,1.6690082,1918.0,1917.8,5.2142]
[1688206685920,5.21403,1917.9,1917.8,5.2142]
[1688206686317,6.8828582,1918.0,1917.8,5.2143]
[1688206686603,9.57038004,1918.0,1917.8,5.2143]
[1688206686804,16.14124004,1918.0,1917.7,5.21446]
[1688206687560,0.5979,1917.9,1917.7,5.21446]
[1688206687749,5.81194,1917.9,1917.7,5.21446]
[1688206688036,5.81194,1917.9,1917.7,10.42903]
[1688206688606,0.5979,1917.9,1917.7,10.42903]
[1688206688821,5.81198,1917.9,1917.7,10.42903]
[1688206689041,5.81196,1917.9,1917.7,10.42903]
[1688206689345,16.14131004,1918.0,1917.7,10.42903]
[1688206689647,14.78431004,1918.0,1917.7,5.21446]
[1688206689947,14.78431004,1918.0,1917.7,10.42903]
[1688206690545,14.78431004,1918.0,1917.7,5.21446]
[1688206691706,17.39119004,1918.0,1917.6,10.4294]
[1688206692108,17.39119004,1918.0,1917.6,5.21463]
[1688206692308,17.39119004,1918.0,1917.5,0.54194381]
[1688206692560,17.39119004,1918.0,1917.5,8.45188929]
[1688206692785,17.39119004,1918.0,1917.6,0.90619548]
[1688206693281,17.39119004,1918.0,1917.4,1.36541984]
[1688206693478,19.00199004,1918.0,1917.4,3.3137449]
[1688206693697,19.00199004,1918.0,1917.5,0.90620438]
[1688206700071,20.34599004,1918.0,1917.5,0.90620438]
[1688206700249,20.34599004,1918.0,1917.4,7.08097671]
[1688206700449,20.34599004,1918.0,1917.5,0.90623464]
[1688206700773,1.1432405,1917.9,1917.4,7.08097671]
[1688206700978,13.0361,1917.8,1917.5,0.9062366]
[1688206702153,13.0361,1917.8,1917.4,1.86559671]
[1688206702942,13.0361,1917.8,1917.5,0.90622546]
[1688206704180,13.0361,1917.8,1917.4,1.86559671]
[1688206706472,10.42839,1917.9,1917.5,0.90622069]
[1688206706679,10.4284,1917.9,1917.5,7.85527069]
[1688206706892,10.4284,1917.9,1917.6,0.78552707]
[1688206707247,13.03541,1917.9,1917.6,0.78552707]
[1688206707696,12.98541,1917.9,1917.6,0.78552707]
[1688206709260,12.98541,1917.9,1917.5,1.734]
[1688206725912,13.00188601,1917.9,1917.5,1.734]
[1688206728902,13.00188601,1917.9,1917.4,0.54786701]
[1688206729103,13.00188601,1917.9,1917.4,1.45409969]
[1688206734361,2.68752184,1917.8,1917.4,0.0059232]
[1688206734508,13.03657,1917.7,1917.4,0.0059232]
[1688206734703,15.72409184,1917.7,1917.4,0.0059232]
[1688206744637,16.1474912,1917.7,1917.4,0.0059232]
[1688206747649,13.03657,1917.7,1917.4,0.0059232]
[1688206754360,14.755837,1917.7,1917.4,0.0059232]
[1688206754867,13.03657,1917.7,1917.4,0.0059232]
[1688206757267,10.42926,1917.7,1917.4,0.0059232]
[1688206759064,5.21463,1917.7,1917.4,0.0059232]
[1688206759270,10.4292,1917.7,1917.4,0.0059232]
[1688206759563,10.42914,1917.7,1917.4,0.0059232]
[1688206760595,5.21457,1917.7,1917.4,5.2212632]
[1688206760761,5.21457,1917.7,1917.4,5.95853852]
[1688206761159,10.429,1917.8,1917.4,5.95853852]
[1688206761367,5.2146,1917.7,1917.4,11.17392852]
[1688206762060,5.21445,1917.8,1917.4,13.78161852]
[1688206762394,5.23058601,1917.9,1917.4,13.78161852]
[1688206762575,5.23058601,1917.9,1917.4,15.52261852]
[1688206762777,5.23050601,1917.9,1917.4,15.52261852]
[1688206763184,1.103536,1917.9,1917.4,14.7853432]
[1688206763584,0.01647601,1917.9,1917.4,14.7853432]
[1688206764892,5.23051601,1917.9,1917.4,14.7853432]
[1688206765567,10.44455601,1917.9,1917.4,14.7853432]
[1688206766400,13.05156601,1917.9,1917.4,14.7853432]
[1688206766773,13.05156601,1917.9,1917.5,10.4301]
[1688206766969,3.99267844,1917.8,1917.4,1.7469232]
[1688206767170,10.42926,1917.7,1917.4,6.9622132]
[1688206767371,9.20713844,1917.8,1917.4,10.4366032]
[1688206767570,9.20713844,1917.8,1917.4,13.0442932]
[1688206767813,0.92071384,1917.7,1917.4,13.0442932]
[1688206767993,6.13537384,1917.7,1917.4,14.7284932]
[1688206768201,16.64483568,1917.7,1917.4,1.6901232]
[1688206768398,0.6072,1917.7,1917.4,1.6901232]
[1688206768603,0.42619391,1918.0,1917.7,2.0]
[1688206768906,2.55,1918.1,1917.8,24.02472184]
[1688206769124,2.55,1918.1,1917.9,2.40247218]
[1688206769294,2.55,1918.1,1918.0,19.68580184]
[1688206788601,2.55,1918.1,1918.0,23.16580184]
[1688206801187,2.55,1918.1,1918.0,28.64480184]
[1688206801506,0.41028155,1918.8,1918.0,28.64480184]
[1688206801724,0.41028155,1918.8,1918.1,4.69448018]
[1688206801927,0.41028155,1918.8,1918.3,15.63876]
[1688206801928,1.043123,1918.8,1918.3,15.63876]
[1688206802092,2.697723,1918.8,1918.3,18.32628184]
[1688206802624,2.697723,1918.8,1918.4,2.68752184]
[1688206802841,1.6546,1918.8,1918.5,15.63705]
[1688206808313,1.6546,1918.8,1918.5,13.79922393]
[1688206808532,6.86619,1918.8,1918.5,13.79922393]
[1688206808732,6.86619,1918.8,1918.5,13.03087]
[1688206808903,1.6546,1918.8,1918.5,13.03087]
[1688206817065,0.12951222,1919.0,1918.6,2.68752184]
[1688206817374,1.6358,1919.0,1918.7,13.0295]
[1688206817575,1.6358,1919.0,1918.7,15.71702184]
[1688206817741,1.6358,1919.0,1918.9,10.42262]
[1688206817937,1.042921,1919.2,1918.9,10.42262]
[1688206818344,1.042921,1919.2,1918.9,13.02827]
[1688206820883,4.20397786,1919.3,1918.9,13.02827]
[1688206821378,4.20397786,1919.3,1918.9,15.71579184]
[1688206821582,4.20397786,1919.3,1919.0,1.57157918]
[1688206821876,4.20397786,1919.3,1919.1,10.42154]
[1688206822067,1.45664019,1919.3,1919.1,10.42154]
[1688206825146,1.45664019,1919.3,1919.0,6.78245918]
[1688206825147,11.46345,1919.3,1919.0,6.78245918]
[1688206825346,6.25309,1919.3,1919.1,0.67824592]
[1688206825547,11.46332,1919.3,1919.0,1.57157918]
[1688206825995,1.04283,1919.3,1919.0,4.25910102]
[1688206826281,6.98539,1919.4,1919.0,15.71498184]
[1688206827079,8.028158,1919.4,1919.0,15.71498184]
[1688206827261,13.238248,1919.4,1919.0,15.71498184]
[1688206827586,14.582248,1919.4,1919.0,15.71498184]
[1688206829093,17.187228,1919.4,1919.0,15.71498184]
[1688206829295,17.187228,1919.4,1919.1,6.78222818]
[1688206832470,17.187228,1919.4,1919.2,0.00386569]
[1688206833902,17.187228,1919.4,1919.2,0.00150647]
[1688206834496,17.187228,1919.4,1919.1,1.57149818]
[1688206834701,17.187228,1919.4,1919.0,2.68752184]
[1688206834702,5.2105,1919.2,1919.0,2.68752184]
[1688206835893,5.2105,1919.2,1919.0,7.89851184]
[1688206836321,5.2105,1919.2,1919.0,7.90415704]
[1688206838623,5.2105,1919.2,1919.0,2.69316704]
[1688206838926,5.2105,1919.2,1919.0,7.90414704]
[1688206839134,5.2105,1919.2,1919.1,0.7904147]
[1688206840988,10.421,1919.2,1919.1,0.7904147]
[1688206841496,5.21034,1919.3,1919.1,6.0011847]
[1688206841717,10.421,1919.2,1919.1,0.7904147]
[1688206842430,5.2105,1919.2,1919.1,0.7904147]
[1688206843824,5.21042,1919.3,1919.1,0.7904147]
[1688206844228,5.2105,1919.2,1919.1,6.0011747]
[1688206844824,10.42084,1919.3,1919.1,6.0011747]
[1688206845026,5.21042,1919.3,1919.1,6.0011747]
[1688206845510,5.2105,1919.2,1919.1,6.0011747]
[1688206847797,10.42083,1919.3,1919.1,6.0011747]
[1688206850328,5.21041,1919.3,1919.2,0.60011747]
[1688206850528,5.21041,1919.3,1919.1,6.0011747]
[1688206851891,5.62931406,1919.6,1919.2,2.68752184]
[1688206852049,5.20946,1919.6,1919.3,13.02557]
[1688206852255,13.90717,1919.7,1919.3,15.71309184]
[1688206852582,8.69786,1919.7,1919.4,1.57130918]
[1688206852793,8.69786,1919.7,1919.5,5.20969]
[1688206853079,3.4886,1919.7,1919.5,5.20969]
[1688206853281,3.4886,1919.7,1919.4,11.99102918]
[1688206853887,8.69781,1919.7,1919.4,11.99102918]
[1688206854256,8.69781,1919.7,1919.5,1.19910292]
[1688206854470,1.8447,1919.7,1919.5,6.40876292]
[1688206854896,2.741889,1919.8,1919.5,6.40876292]
[1688206855290,13.159889,1919.8,1919.5,1.19910292]
[1688206857290,1.042589,1919.8,1919.5,3.88662476]
[1688206857488,5.2089,1919.8,1919.5,13.10690184]
[1688206859476,10.4178,1919.8,1919.5,13.10690184]
[1688206860815,5.2089,1919.8,1919.5,13.10690184]
[1688206861389,5.2089,1919.8,1919.6,2.68752184]
[1688206861590,5.2089,1919.8,1919.7,0.26875218]
[1688206861591,10.4178,1919.8,1919.7,0.26875218]
[1688206862103,5.20872,1919.9,1919.7,5.47789218]
[1688206862304,1.7577,1920.0,1919.7,8.16541402]
[1688206862487,1.142441,1920.1,1919.8,2.68752184]
[1688206862688,0.1,1920.1,1919.9,10.4172]
[1688206862997,0.1,1920.1,1919.9,9.46700102]
[1688206863197,5.30807,1920.1,1919.9,9.46700102]
[1688206863577,0.1,1920.1,1919.9,14.67560102]
[1688206863980,0.1,1920.1,1920.0,13.10418184]
[1688206864214,0.1,1920.1,1920.0,17.54134184]
[1688206864532,0.1,1920.1,1920.0,20.26089694]
[1688206865281,0.1,1920.1,1920.0,25.73989694]
[1688206870953,0.1,1920.1,1920.0,28.73989694]
[1688206871160,0.0343014,1920.3,1920.2,4.5]
[1688206871332,0.1,1920.4,1920.2,47.39325184]
[1688206871532,0.1,1920.4,1920.3,17.90584702]
[1688206871735,0.1,1920.5,1920.4,7.479]
[1688206871942,0.1,1920.5,1920.4,26.66462184]
[1688206873257,0.1,1920.7,1920.4,28.51362184]
[1688206873444,0.1,1920.7,1920.6,25.13962184]
[1688206873645,0.1,1920.7,1920.6,31.52225602]
[1688206873856,0.1,1920.7,1920.6,32.00225602]
[1688206875358,0.1,1920.7,1920.6,6.07015602]
[1688206875543,0.1,1920.7,1920.6,2.68752184]
[1688206875750,0.1,1920.7,1920.6,7.89422184]
[1688206877268,0.1,1920.7,1920.6,8.37422184]
[1688206877430,5.30643,1920.7,1920.6,2.68752184]
[1688206877780,5.30643,1920.7,1920.5,10.41368]
[1688206877949,5.30643,1920.7,1920.5,7.89431184]
[1688206878130,5.30643,1920.7,1920.5,13.10128184]
[1688206880969,14.177338,1920.7,1920.4,5.20722]
[1688206881272,14.177338,1920.7,1920.1,5.20792]
[1688206881443,14.177338,1920.7,1920.1,2.68752184]
[1688206881966,14.177338,1920.7,1920.1,15.70759184]
[1688206882174,14.177338,1920.7,1920.1,13.10356184]
[1688206882669,14.177338,1920.7,1920.1,15.70759184]
[1688206883536,14.177338,1920.7,1920.1,13.10356184]
[1688206883737,14.177338,1920.7,1920.1,14.41391802]
[1688206884071,14.177338,1920.7,1920.1,9.20585802]
[1688206884575,0.01647601,1920.6,1920.1,1.31035618]
[1688206884775,14.37477,1920.5,1920.0,3.0]
[1688206885077,14.37477,1920.5,1920.0,5.68752184]
[1688206885273,14.37477,1920.5,1920.0,10.89583184]
[1688206885476,14.37477,1920.5,1920.0,13.10416184]
[1688206885694,0.1,1920.8,1920.4,10.16652184]
[1688206885850,0.1,1920.8,1920.7,2.60321]
[1688206886048,0.1,1920.8,1920.7,16.78056502]
[1688206886278,0.1,1920.8,1920.7,19.86377502]
[1688206886452,0.1,1920.8,1920.7,25.34277502]
[1688206886651,0.1,1920.8,1920.7,26.69577502]
[1688206887060,0.1,1920.8,1920.7,29.69577502]
[1688206889055,0.1,1920.8,1920.7,28.34277502]
[1688206889285,0.1,1920.8,1920.7,25.73956502]
[1688206895786,0.1,1920.8,1920.7,27.09656502]
[1688206896364,0.1,1920.8,1920.7,29.09656502]
[1688206896698,0.1,1920.8,1920.7,16.08049502]
[1688206897001,0.1,1920.8,1920.7,29.09656502]
[1688206901284,0.1,1920.8,1920.7,27.73956502]
[1688206908434,0.1,1920.8,1920.7,27.68956502]
[1688206909534,0.1,1920.8,1920.7,25.68956502]
[1688206910337,0.1,1920.8,1920.7,27.68956502]
[1688206923979,0.1,1920.8,1920.7,19.13359184]
[1688206924460,0.1,1920.8,1920.7,21.13359184]
[1688206925235,0.1,1920.8,1920.7,26.61259184]
[1688206928161,0.1,1920.8,1920.7,22.00938184]
[1688206928338,0.1,1920.8,1920.7,24.61259184]
[1688206929529,0.1,1920.8,1920.7,27.7753791]
[1688206933467,0.1,1920.8,1920.7,32.7583791]
[1688206933634,0.1,1920.8,1920.7,30.53716144]
[1688206934144,0.1,1920.8,1920.7,20.1733791]
[1688206934356,0.1,1920.8,1920.7,7.84395184]
[1688206934668,0.1,1920.8,1920.7,15.65359184]
[1688206935167,0.1,1920.8,1920.7,25.13259184]
[1688206935371,0.1,1920.8,1920.7,26.03734963]
[1688206935559,0.1,1920.8,1920.7,32.18131005]
[1688206935963,0.1,1920.8,1920.7,32.66131005]
[1688206936158,0.1,1920.8,1920.7,31.75655226]
[1688206936749,0.1,1920.8,1920.7,34.88255226]
[1688206936970,0.1,1920.8,1920.7,39.04334073]
[1688206937879,0.1,1920.8,1920.7,38.50139692]
[1688206940059,0.1,1920.8,1920.7,37.14429012]
[1688206943468,0.107,1920.9,1920.8,9.105]
[1688206943672,0.107,1920.9,1920.8,33.83407739]
[1688206943879,0.107,1920.9,1920.8,35.18007739]
[1688206944351,0.107,1920.9,1920.8,33.82308871]
[1688206944759,0.107,1920.9,1920.8,38.82308871]
[1688206945783,0.107,1920.9,1920.8,39.30308871]
[1688206945976,0.107,1920.9,1920.8,38.39835085]
[1688206946167,0.107,1920.9,1920.8,33.39835085]
[1688206946367,0.107,1920.9,1920.8,33.66609056]
[1688206948559,0.107,1920.9,1920.8,34.57072189]
[1688206949276,0.107,1920.9,1920.8,33.66609056]
[1688206955221,0.107,1920.9,1920.8,34.72416538]
[1688206955412,0.107,1920.9,1920.8,33.37816538]
[1688206955721,0.107,1920.9,1920.8,29.19409056]
[1688206955862,0.107,1920.9,1920.8,29.61444534]
[1688206963201,0.107,1920.9,1920.8,30.63477747]
[1688206963380,0.107,1920.9,1920.8,29.61444534]
[1688206963584,0.107,1920.9,1920.8,29.34670563]
[1688206964375,0.107,1920.9,1920.8,29.61444534]
[1688206971309,0.107,1920.9,1920.8,32.74044534]
[1688206971476,0.107,1920.9,1920.8,34.99208687]
[1688206972096,0.107,1920.9,1920.8,36.34903144]
[1688206974480,0.107,1920.9,1920.8,41.34903144]
[1688206975986,0.107,1920.9,1920.8,41.89097525]
[1688206977612,0.107,1920.9,1920.8,40.00203144]
[1688206977791,0.107,1920.9,1920.8,39.87181244]
[1688206977994,0.107,1920.9,1920.8,34.87181244]
[1688206978206,0.1,1921.4,1920.8,34.87181244]
[1688206978207,0.114,1921.7,1921.5,2.0]
[1688206978393,0.1,1921.8,1921.7,9.848781]
[1688206978583,0.1,1921.8,1921.7,29.42853208]
[1688206978916,0.1,1921.8,1921.7,34.26547665]
[1688206979326,1.2068984,1922.4,1922.3,4.0]
[1688206979487,0.81385908,1922.4,1922.3,27.99574067]
[1688206979892,0.81385908,1922.4,1922.3,25.99574067]
[1688206980095,0.81385908,1922.4,1922.3,10.8842]
[1688206980396,0.81385908,1922.4,1922.3,13.48525]
[1688206981810,2.15785908,1922.4,1922.1,5.0]
[1688206982036,2.15785908,1922.4,1922.2,5.20224]
[1688206982226,0.81385908,1922.4,1922.2,5.20224]
[1688206982717,0.81385908,1922.4,1922.2,10.40464]
[1688206982904,1.357,1922.3,1922.2,10.40464]
[1688206983308,1.357,1922.3,1922.2,13.48582]
[1688206983826,1.357,1922.3,1922.2,10.88464]
[1688206985020,1.357,1922.3,1922.2,13.48582]
[1688206986533,1.357,1922.3,1922.2,10.88464]
[1688206987126,1.357,1922.3,1922.2,13.48582]
[1688206987316,1.357,1922.3,1922.2,10.88464]
[1688206988111,1.357,1922.3,1922.2,0.48]
[1688206988326,1.357,1922.3,1922.2,10.40474]
[1688206988507,1.357,1922.3,1922.2,13.00592]
[1688206989605,1.357,1922.3,1922.2,10.40474]
[1688206989805,1.357,1922.3,1922.2,18.57126184]
[1688206990001,0.81385908,1922.4,1922.2,23.76969702]
[1688206990202,0.81385908,1922.4,1922.3,3.16752184]
[1688206990421,0.81385908,1922.4,1922.3,16.17277184]
[1688206999317,2.16585908,1922.4,1922.3,16.17277184]
[1688207001056,0.81385908,1922.4,1922.3,16.17277184]
[1688207001228,0.81385908,1922.4,1922.3,18.84071966]
[1688207002052,0.81385908,1922.4,1922.3,20.84071966]
[1688207010067,0.81385908,1922.4,1922.3,26.31971966]
[1688207021876,0.81385908,1922.4,1922.3,29.31971966]
[1688207024211,0.11647601,1922.7,1922.6,2.68752184]
[1688207024368,1.464,1922.8,1922.7,12.605]
[1688207024369,0.107,1922.8,1922.7,12.605]
[1688207024574,0.107,1922.8,1922.7,28.56377212]
[1688207024899,0.107,1922.8,1922.7,30.69777212]
[1688207025470,0.1,1922.9,1922.7,35.18077212]
[1688207025671,0.26463356,1923.8,1923.4,7.479]
[1688207026003,0.26463356,1923.8,1923.5,2.68752184]
[1688207026004,8.06169356,1923.8,1923.5,2.68752184]
[1688207026202,8.06169356,1923.8,1923.2,4.59979]
[1688207026203,0.13441456,1923.8,1923.7,2.68752184]
[1688207026498,0.13441456,1923.8,1923.7,3.16752184]
[1688207026700,1.49041456,1923.8,1923.7,3.16752184]
[1688207026879,6.68845456,1923.8,1923.7,3.16752184]
[1688207027075,11.88649456,1923.8,1923.7,3.16752184]
[1688207027309,13.34806492,1923.8,1923.7,3.16752184]
[1688207028092,13.34806492,1923.8,1923.5,10.39748]
[1688207028407,1.482219,1923.7,1923.6,3.16752184]
[1688207028705,6.67333096,1923.7,1923.6,3.16752184]
[1688207029508,11.87164096,1923.7,1923.6,3.16752184]
[1688207029670,13.47830555,1923.7,1923.6,3.16752184]
[1688207030366,8.27999555,1923.7,1923.6,8.36610184]
[1688207030573,0.130219,1923.7,1923.6,13.56468184]
[1688207030882,1.49041456,1923.8,1923.6,16.16397184]
[1688207031081,0.13441456,1923.8,1923.6,13.56468184]
[1688207031271,0.13441456,1923.8,1923.6,16.16397184]
[1688207032684,0.13441456,1923.8,1923.6,13.56468184]